[Event "*** Titled Tuesday Blitz"]
[Site "Chess.com"]
[Date "2020.12.29"]
[Round "8"]
[White "stasiek18"]
[Black "cukin84"]
[Result "0-1"]
[WhiteElo "2374"]
[BlackElo "2206"]
[TimeControl "180+1"]
[EndTime "11:27:33 PST"]
[Termination "cukin84 won by resignation"]

1. e4 {[%clk 0:03:00.9]} 1... c6 {[%clk 0:02:59.7]} 2. d4 {[%clk 0:02:59.6]}
2... d5 {[%clk 0:02:59.7]} 3. Nc3 {[%clk 0:02:53.8]} 3... a6 {[%clk 0:02:59.1]}
4. Nf3 {[%clk 0:02:49.8]} 4... Bg4 {[%clk 0:02:58.1]} 5. h3 {[%clk 0:02:49.9]}
5... Bh5 {[%clk 0:02:56.2]} 6. Be3 {[%clk 0:02:46.3]} 6... e6 {[%clk 0:02:55.3]}
7. Qd2 {[%clk 0:02:16.3]} 7... Nf6 {[%clk 0:02:53.7]} 8. e5 {[%clk 0:02:14.1]}
8... Nfd7 {[%clk 0:02:53]} 9. g4 {[%clk 0:02:12.4]} 9... Bg6 {[%clk 0:02:52.6]}
10. h4 {[%clk 0:02:11.3]} 10... h5 {[%clk 0:02:51.3]} 11. Be2 {[%clk 0:01:36.6]}
11... hxg4 {[%clk 0:02:50.5]} 12. Ng5 {[%clk 0:01:36.5]} 12... c5 {[%clk
0:02:35.4]} 13. Bxg4 {[%clk 0:01:26.5]} 13... cxd4 {[%clk 0:02:35]} 14. Bxd4
{[%clk 0:01:24.9]} 14... Nc6 {[%clk 0:02:34.3]} 15. f4 {[%clk 0:00:57.6]} 15...
Nxd4 {[%clk 0:02:31.9]} 16. Qxd4 {[%clk 0:00:58.5]} 16... Bc5 {[%clk 0:02:31.3]}
17. Qd2 {[%clk 0:00:56.8]} 17... Qa5 {[%clk 0:02:07.9]} 18. h5 {[%clk
0:00:43.9]} 18... O-O-O {[%clk 0:02:05.6]} 19. O-O-O {[%clk 0:00:43.2]} 19... d4
{[%clk 0:01:51.1]} 20. Nb1 {[%clk 0:00:23.8]} 20... Bb4 {[%clk 0:01:24.5]} 21.
Qxd4 {[%clk 0:00:13.9]} 21... Bxc2 {[%clk 0:01:18.2]} 22. Kxc2 {[%clk 0:00:12]}
22... Kb8 {[%clk 0:01:18.5]} 23. Nc3 {[%clk 0:00:09.2]} 23... Bxc3 {[%clk
0:01:16]} 24. bxc3 {[%clk 0:00:06.8]} 24... Qxa2+ {[%clk 0:01:14.6]} 25. Kc1
{[%clk 0:00:07.3]} 25... Qa1+ {[%clk 0:01:09.2]} 26. Kc2 {[%clk 0:00:07.5]}
26... Qa2+ {[%clk 0:01:09.1]} 27. Kc1 {[%clk 0:00:07.4]} 27... Qa3+ {[%clk
0:01:07.2]} 28. Kc2 {[%clk 0:00:06.9]} 28... Nc5 {[%clk 0:01:05.2]} 29. Qb4
{[%clk 0:00:04.8]} 29... Qa2+ {[%clk 0:01:03.7]} 30. Qb2 {[%clk 0:00:04.8]}
30... Qa4+ {[%clk 0:00:57.4]} 31. Kb1 {[%clk 0:00:05.1]} 31... Qxf4 {[%clk
0:00:53]} 32. Qg2 {[%clk 0:00:01.4]} 32... Qxg5 {[%clk 0:00:49.7]} 33. Rxd8+
{[%clk 0:00:01.9]} 33... Rxd8 {[%clk 0:00:48.6]} 34. Rg1 {[%clk 0:00:02.8]}
34... Rd2 {[%clk 0:00:41]} 35. Bd1 {[%clk 0:00:01.1]} 0-1

[Event "*** Titled Tuesday Blitz"]
[Site "Chess.com"]
[Date "2020.12.29"]
[Round "8"]
[White "grunbergmihai"]
[Black "Susal_De_Silva"]
[Result "1/2-1/2"]
[WhiteElo "2450"]
[BlackElo "2566"]
[TimeControl "180+1"]
[EndTime "11:27:34 PST"]
[Termination "Game drawn by repetition"]

1. Nf3 {[%clk 0:03:00.9]} 1... Nf6 {[%clk 0:02:53.8]} 2. c4 {[%clk 0:03:01.8]}
2... e6 {[%clk 0:02:51.7]} 3. g3 {[%clk 0:03:01.4]} 3... b6 {[%clk 0:02:51.8]}
4. Bg2 {[%clk 0:03:01.1]} 4... Bb7 {[%clk 0:02:52.7]} 5. O-O {[%clk 0:03:01.4]}
5... g6 {[%clk 0:02:53]} 6. d4 {[%clk 0:03:01.3]} 6... Bg7 {[%clk 0:02:53.2]} 7.
Nc3 {[%clk 0:03:01.3]} 7... Ne4 {[%clk 0:02:52.7]} 8. Bf4 {[%clk 0:02:55.7]}
8... O-O {[%clk 0:02:51.5]} 9. Qc2 {[%clk 0:02:55.2]} 9... Nxc3 {[%clk
0:02:51.2]} 10. Qxc3 {[%clk 0:02:53.7]} 10... d6 {[%clk 0:02:51.5]} 11. Qd2
{[%clk 0:02:49.5]} 11... Nd7 {[%clk 0:02:48.5]} 12. Bh6 {[%clk 0:02:48.8]} 12...
Qe7 {[%clk 0:02:46.7]} 13. Rfd1 {[%clk 0:02:43.3]} 13... f5 {[%clk 0:02:43.2]}
14. Bxg7 {[%clk 0:02:40.9]} 14... Kxg7 {[%clk 0:02:41.1]} 15. b4 {[%clk
0:02:40.4]} 15... Nf6 {[%clk 0:02:34.7]} 16. a3 {[%clk 0:02:25.4]} 16... Rad8
{[%clk 0:02:29.5]} 17. Qb2 {[%clk 0:02:22.7]} 17... Bxf3 {[%clk 0:02:15.5]} 18.
Bxf3 {[%clk 0:02:21]} 18... e5 {[%clk 0:02:15.4]} 19. dxe5 {[%clk 0:02:11.4]}
19... dxe5 {[%clk 0:02:16.3]} 20. e3 {[%clk 0:02:05.7]} 20... e4 {[%clk
0:02:12.8]} 21. Be2 {[%clk 0:02:03.5]} 21... Kh6 {[%clk 0:02:09.9]} 22. Rxd8
{[%clk 0:01:56.4]} 22... Rxd8 {[%clk 0:02:10.8]} 23. Rd1 {[%clk 0:01:56.9]}
23... Rxd1+ {[%clk 0:02:06.5]} 24. Bxd1 {[%clk 0:01:57.8]} 24... c5 {[%clk
0:02:04.6]} 25. Be2 {[%clk 0:01:50.5]} 25... Qd6 {[%clk 0:02:01.9]} 26. h4
{[%clk 0:01:43.4]} 26... g5 {[%clk 0:01:59.9]} 27. hxg5+ {[%clk 0:01:41.8]}
27... Kxg5 {[%clk 0:02:00.8]} 28. Kg2 {[%clk 0:01:40]} 28... h5 {[%clk
0:01:58.9]} 29. bxc5 {[%clk 0:01:36.7]} 29... bxc5 {[%clk 0:01:57.7]} 30. Qb7
{[%clk 0:01:34.9]} 30... Qd7 {[%clk 0:01:50.8]} 31. Qb8 {[%clk 0:01:19.9]} 31...
Kg6 {[%clk 0:01:46.1]} 32. Qe5 {[%clk 0:01:12.9]} 32... Qd2 {[%clk 0:01:41.3]}
33. Bxh5+ {[%clk 0:00:57]} 33... Nxh5 {[%clk 0:01:35.6]} 34. Qe8+ {[%clk
0:00:56.5]} 34... Kh6 {[%clk 0:01:21.5]} 35. Qh8+ {[%clk 0:00:52.1]} 35... Kg5
{[%clk 0:01:14.3]} 36. Qg8+ {[%clk 0:00:50.3]} 36... Kh6 {[%clk 0:01:00.8]} 37.
Qh8+ {[%clk 0:00:46.5]} 37... Kg6 {[%clk 0:01:00.8]} 38. Qe8+ {[%clk 0:00:45.6]}
38... Kg5 {[%clk 0:00:51.4]} 39. Qg8+ {[%clk 0:00:44.6]} 39... Kf6 {[%clk
0:00:34.8]} 40. Qf8+ {[%clk 0:00:42.8]} 40... Kg6 {[%clk 0:00:29.1]} 41. Qe8+
{[%clk 0:00:36.7]} 1/2-1/2

[Event "*** Titled Tuesday Blitz"]
[Site "Chess.com"]
[Date "2020.12.29"]
[Round "8"]
[White "Khusenkhojaev"]
[Black "Alekseyviktorovich"]
[Result "1-0"]
[WhiteElo "2446"]
[BlackElo "2318"]
[TimeControl "180+1"]
[EndTime "11:27:34 PST"]
[Termination "Khusenkhojaev won by resignation"]

1. Nf3 {[%clk 0:03:00.9]} 1... d5 {[%clk 0:02:59.3]} 2. d4 {[%clk 0:02:59.9]}
2... Nf6 {[%clk 0:02:59.1]} 3. c4 {[%clk 0:02:59.9]} 3... c6 {[%clk 0:02:58.6]}
4. e3 {[%clk 0:02:59.1]} 4... Bg4 {[%clk 0:02:57]} 5. Nc3 {[%clk 0:02:58.4]}
5... e6 {[%clk 0:02:52.8]} 6. h3 {[%clk 0:02:57.2]} 6... Bh5 {[%clk 0:02:51.4]}
7. Qb3 {[%clk 0:02:56.8]} 7... Qb6 {[%clk 0:02:47.3]} 8. Ne5 {[%clk 0:02:56.5]}
8... Nbd7 {[%clk 0:02:42.6]} 9. g4 {[%clk 0:02:55]} 9... Bg6 {[%clk 0:02:42.3]}
10. Nxg6 {[%clk 0:02:54.2]} 10... hxg6 {[%clk 0:02:42]} 11. g5 {[%clk
0:02:45.9]} 11... Ng8 {[%clk 0:02:26.1]} 12. Bd2 {[%clk 0:02:39.6]} 12... Be7
{[%clk 0:02:17.4]} 13. f4 {[%clk 0:02:37.6]} 13... Qxb3 {[%clk 0:02:03.5]} 14.
axb3 {[%clk 0:02:36.6]} 14... Bb4 {[%clk 0:02:04]} 15. Bd3 {[%clk 0:02:28.2]}
15... Ne7 {[%clk 0:02:03.3]} 16. Ke2 {[%clk 0:02:27.8]} 16... a6 {[%clk
0:01:50.8]} 17. Nxd5 {[%clk 0:02:18.4]} 17... Nxd5 {[%clk 0:01:46.3]} 18. cxd5
{[%clk 0:02:18.2]} 18... Bxd2 {[%clk 0:01:39.6]} 19. dxe6 {[%clk 0:02:17.3]}
19... Bb4 {[%clk 0:01:27.5]} 20. exd7+ {[%clk 0:02:12.1]} 20... Kxd7 {[%clk
0:01:27.5]} 21. h4 {[%clk 0:02:03.6]} 21... Rae8 {[%clk 0:01:12.6]} 22. Kf3
{[%clk 0:02:02.2]} 22... Kc7 {[%clk 0:01:04.9]} 23. Bc4 {[%clk 0:01:55.3]} 23...
Re7 {[%clk 0:01:04.4]} 24. e4 {[%clk 0:01:52.6]} 24... Rd8 {[%clk 0:01:03.7]}
25. Rad1 {[%clk 0:01:50.8]} 25... f6 {[%clk 0:01:03.8]} 26. gxf6 {[%clk
0:01:33.3]} 26... gxf6 {[%clk 0:01:03.2]} 27. Rhg1 {[%clk 0:01:32.2]} 27... Rh8
{[%clk 0:00:48.1]} 28. Rxg6 {[%clk 0:01:28.1]} 28... Rxh4 {[%clk 0:00:48.1]} 29.
Rxf6 {[%clk 0:01:26.2]} 29... Rh2 {[%clk 0:00:45.4]} 30. e5 {[%clk 0:01:21.1]}
30... Rxb2 {[%clk 0:00:43.9]} 31. Rf7 {[%clk 0:01:18.1]} 31... b5 {[%clk
0:00:43.2]} 32. Rxe7+ {[%clk 0:01:13.4]} 32... Bxe7 {[%clk 0:00:42.5]} 33. Bg8
{[%clk 0:01:12.3]} 33... a5 {[%clk 0:00:36.1]} 34. f5 {[%clk 0:01:11.9]} 34...
Bf8 {[%clk 0:00:27.9]} 35. f6 {[%clk 0:01:08.8]} 35... a4 {[%clk 0:00:25.8]} 36.
bxa4 {[%clk 0:01:06.1]} 36... bxa4 {[%clk 0:00:26]} 37. e6 {[%clk 0:01:00.3]}
37... Kd6 {[%clk 0:00:25.9]} 38. Re1 {[%clk 0:00:58.6]} 38... Rb7 {[%clk
0:00:21.8]} 39. e7 {[%clk 0:00:51]} 39... Bxe7 {[%clk 0:00:21.6]} 40. Re6+
{[%clk 0:00:50.6]} 1-0

[Event "*** Titled Tuesday Blitz"]
[Site "Chess.com"]
[Date "2020.12.29"]
[Round "8"]
[White "amatatanav"]
[Black "Chuchofrio1"]
[Result "1-0"]
[WhiteElo "2429"]
[BlackElo "2273"]
[TimeControl "180+1"]
[EndTime "11:27:39 PST"]
[Termination "amatatanav won by checkmate"]

1. e4 {[%clk 0:03:00.9]} 1... c5 {[%clk 0:02:59.8]} 2. Ne2 {[%clk 0:03:00.5]}
2... Nc6 {[%clk 0:02:59.2]} 3. g3 {[%clk 0:03:00]} 3... g6 {[%clk 0:02:57.1]} 4.
Bg2 {[%clk 0:03:00.3]} 4... Bg7 {[%clk 0:02:57.2]} 5. c3 {[%clk 0:02:59.4]} 5...
e5 {[%clk 0:02:55.5]} 6. O-O {[%clk 0:02:47.9]} 6... d6 {[%clk 0:02:55.5]} 7.
Na3 {[%clk 0:02:29.1]} 7... Nge7 {[%clk 0:02:53.8]} 8. Nc2 {[%clk 0:02:27.9]}
8... O-O {[%clk 0:02:48.4]} 9. d4 {[%clk 0:02:24.6]} 9... cxd4 {[%clk
0:02:48.4]} 10. cxd4 {[%clk 0:02:24.7]} 10... Bg4 {[%clk 0:02:41.3]} 11. f3
{[%clk 0:02:18.4]} 11... Bd7 {[%clk 0:02:39.1]} 12. d5 {[%clk 0:02:12.4]} 12...
Nd4 {[%clk 0:02:24.7]} 13. Ncxd4 {[%clk 0:02:09.5]} 13... exd4 {[%clk
0:02:24.5]} 14. Nxd4 {[%clk 0:01:37.6]} 14... Qb6 {[%clk 0:02:23]} 15. Be3
{[%clk 0:01:36]} 15... Qxb2 {[%clk 0:02:22.9]} 16. Rb1 {[%clk 0:01:04.3]} 16...
Qxa2 {[%clk 0:02:21.4]} 17. Rxb7 {[%clk 0:01:02.3]} 17... Rfd8 {[%clk
0:02:14.6]} 18. Qa1 {[%clk 0:00:36.9]} 18... Qxa1 {[%clk 0:02:08.2]} 19. Rxa1
{[%clk 0:00:36.3]} 19... f5 {[%clk 0:02:03.3]} 20. Raxa7 {[%clk 0:00:30.7]}
20... Rxa7 {[%clk 0:02:00.3]} 21. Rxa7 {[%clk 0:00:31.6]} 21... fxe4 {[%clk
0:01:59.2]} 22. fxe4 {[%clk 0:00:32.5]} 22... Bf6 {[%clk 0:01:55.6]} 23. Rc7
{[%clk 0:00:17.2]} 23... Be8 {[%clk 0:01:45.1]} 24. Nc6 {[%clk 0:00:13.7]} 24...
Nxc6 {[%clk 0:01:27.3]} 25. dxc6 {[%clk 0:00:14.6]} 25... Be5 {[%clk 0:01:26.8]}
26. Bb6 {[%clk 0:00:12.8]} 26... Rb8 {[%clk 0:01:24.1]} 27. Rb7 {[%clk
0:00:11.4]} 27... Ra8 {[%clk 0:01:17.5]} 28. c7 {[%clk 0:00:10.4]} 28... d5
{[%clk 0:01:15.4]} 29. exd5 {[%clk 0:00:08.6]} 29... Bd7 {[%clk 0:01:13.8]} 30.
Kf2 {[%clk 0:00:05.7]} 30... Bc8 {[%clk 0:01:11.2]} 31. Rb8 {[%clk 0:00:05.4]}
31... Rxb8 {[%clk 0:01:11.2]} 32. cxb8=Q {[%clk 0:00:06.3]} 32... Bxb8 {[%clk
0:01:11.5]} 33. Ke3 {[%clk 0:00:06.1]} 33... Kf7 {[%clk 0:01:10.8]} 34. Kd4
{[%clk 0:00:06.4]} 34... Ke7 {[%clk 0:01:10.4]} 35. Bc5+ {[%clk 0:00:06.1]}
35... Kd8 {[%clk 0:01:10.4]} 36. d6 {[%clk 0:00:04.5]} 36... Be6 {[%clk
0:01:09.5]} 37. Ke5 {[%clk 0:00:04.8]} 37... Bd7 {[%clk 0:01:08.1]} 38. Bd5
{[%clk 0:00:04.6]} 38... h6 {[%clk 0:01:06.9]} 39. Kf6 {[%clk 0:00:04.3]} 39...
g5 {[%clk 0:01:06.2]} 40. Kg6 {[%clk 0:00:04.3]} 40... Be8+ {[%clk 0:01:03.9]}
41. Kxh6 {[%clk 0:00:04.3]} 41... Kd7 {[%clk 0:01:04.2]} 42. Kxg5 {[%clk
0:00:04.4]} 42... Kd8 {[%clk 0:01:01.9]} 43. Kf6 {[%clk 0:00:04.3]} 43... Bd7
{[%clk 0:01:01.7]} 44. Bf7 {[%clk 0:00:04]} 44... Bc6 {[%clk 0:00:58.3]} 45. Be6
{[%clk 0:00:04.1]} 45... Bf3 {[%clk 0:00:57.5]} 46. Bb6+ {[%clk 0:00:04.2]}
46... Ke8 {[%clk 0:00:57.8]} 47. d7+ {[%clk 0:00:04.7]} 47... Kf8 {[%clk
0:00:57.2]} 48. d8=Q# {[%clk 0:00:05.6]} 1-0

[Event "*** Titled Tuesday Blitz"]
[Site "Chess.com"]
[Date "2020.12.29"]
[Round "8"]
[White "NiranjanNavalgund"]
[Black "Vesper2018"]
[Result "1-0"]
[WhiteElo "2501"]
[BlackElo "2616"]
[TimeControl "180+1"]
[EndTime "11:27:41 PST"]
[Termination "NiranjanNavalgund won by resignation"]

1. e4 {[%clk 0:03:00.9]} 1... c5 {[%clk 0:02:59.6]} 2. d4 {[%clk 0:03:00]} 2...
cxd4 {[%clk 0:02:59.4]} 3. c3 {[%clk 0:02:59.9]} 3... d3 {[%clk 0:02:55.7]} 4.
Na3 {[%clk 0:02:58.4]} 4... Nc6 {[%clk 0:02:51.8]} 5. Nc4 {[%clk 0:02:57.8]}
5... g6 {[%clk 0:02:49.9]} 6. h4 {[%clk 0:02:57.2]} 6... h5 {[%clk 0:02:46.7]}
7. Ne3 {[%clk 0:02:55.1]} 7... Bg7 {[%clk 0:02:45]} 8. Bxd3 {[%clk 0:02:54.2]}
8... d6 {[%clk 0:02:41.5]} 9. Nf3 {[%clk 0:02:54.5]} 9... Nf6 {[%clk 0:02:41]}
10. Ng5 {[%clk 0:02:54.1]} 10... O-O {[%clk 0:02:35.7]} 11. f4 {[%clk
0:02:50.1]} 11... e5 {[%clk 0:02:12.1]} 12. f5 {[%clk 0:02:48.8]} 12... gxf5
{[%clk 0:02:07.2]} 13. Nxf5 {[%clk 0:02:48.8]} 13... Bxf5 {[%clk 0:02:04.6]} 14.
exf5 {[%clk 0:02:49.7]} 14... d5 {[%clk 0:02:01.9]} 15. O-O {[%clk 0:02:48.5]}
15... Ng4 {[%clk 0:01:26.5]} 16. Kh1 {[%clk 0:02:30.8]} 16... Qb6 {[%clk
0:01:09.9]} 17. Qe2 {[%clk 0:02:22.4]} 17... e4 {[%clk 0:01:08.6]} 18. Bc2
{[%clk 0:02:22]} 18... Bf6 {[%clk 0:01:04.9]} 19. Rf4 {[%clk 0:02:16]} 19...
Nce5 {[%clk 0:01:04.1]} 20. Rb1 {[%clk 0:02:07.3]} 20... Rfe8 {[%clk 0:01:01.8]}
21. Bd2 {[%clk 0:02:07.1]} 21... Nd3 {[%clk 0:00:59.3]} 22. Bxd3 {[%clk
0:02:02]} 22... exd3 {[%clk 0:00:59.3]} 23. Qf3 {[%clk 0:02:01.8]} 23... Bxg5
{[%clk 0:00:50.4]} 24. Rxg4 {[%clk 0:02:00.6]} 24... hxg4 {[%clk 0:00:48.2]} 25.
Qxg4 {[%clk 0:02:00.6]} 25... Re2 {[%clk 0:00:24.4]} 26. Qxg5+ {[%clk
0:01:52.6]} 26... Kf8 {[%clk 0:00:23.6]} 27. f6 {[%clk 0:01:42.1]} 27... Qf2
{[%clk 0:00:23.1]} 28. Bf4 {[%clk 0:01:31.7]} 28... Rc8 {[%clk 0:00:11.7]} 29.
Bd6+ {[%clk 0:01:29.5]} 29... Ke8 {[%clk 0:00:10.8]} 30. Qxd5 {[%clk 0:01:27]}
30... Rd8 {[%clk 0:00:09.5]} 31. Qb5+ {[%clk 0:01:00.6]} 31... Rd7 {[%clk
0:00:09.4]} 32. Rg1 {[%clk 0:01:00.6]} 32... Qxh4+ {[%clk 0:00:07.3]} 33. Bh2
{[%clk 0:01:00.5]} 33... d2 {[%clk 0:00:07.3]} 34. Qxe2+ {[%clk 0:00:57.6]}
34... Kd8 {[%clk 0:00:06.4]} 35. Rd1 {[%clk 0:00:56.1]} 35... Qg5 {[%clk
0:00:04.3]} 36. Qf2 {[%clk 0:00:55.2]} 36... Rd3 {[%clk 0:00:03.6]} 37. Qxa7
{[%clk 0:00:50.9]} 37... Qh5 {[%clk 0:00:01.9]} 38. Qb8+ {[%clk 0:00:49.3]}
38... Kd7 {[%clk 0:00:02.3]} 39. Qxb7+ {[%clk 0:00:49.5]} 39... Ke6 {[%clk
0:00:02.5]} 40. Qe4+ {[%clk 0:00:49]} 40... Kxf6 {[%clk 0:00:02.9]} 41. Rf1+
{[%clk 0:00:47]} 41... Kg7 {[%clk 0:00:02.4]} 42. Qxd3 {[%clk 0:00:46.5]} 1-0

[Event "*** Titled Tuesday Blitz"]
[Site "Chess.com"]
[Date "2020.12.29"]
[Round "8"]
[White "bazar-wokzal"]
[Black "kingofthenil"]
[Result "0-1"]
[WhiteElo "2567"]
[BlackElo "2756"]
[TimeControl "180+1"]
[EndTime "11:27:45 PST"]
[Termination "kingofthenil won on time"]

1. e4 {[%clk 0:03:00.9]} 1... Nc6 {[%clk 0:02:59.7]} 2. d4 {[%clk 0:03:00.8]}
2... d5 {[%clk 0:03:00.1]} 3. Nc3 {[%clk 0:03:00.6]} 3... dxe4 {[%clk
0:02:59.1]} 4. d5 {[%clk 0:03:00.6]} 4... Nb8 {[%clk 0:02:59.6]} 5. Bf4 {[%clk
0:02:58.6]} 5... Nf6 {[%clk 0:02:59.3]} 6. Bc4 {[%clk 0:02:40.1]} 6... a6 {[%clk
0:02:57.5]} 7. f3 {[%clk 0:02:17.4]} 7... b5 {[%clk 0:02:35.2]} 8. Bb3 {[%clk
0:02:16.7]} 8... c5 {[%clk 0:02:31.5]} 9. dxc6 {[%clk 0:02:09.4]} 9... Qxd1+
{[%clk 0:02:01]} 10. Rxd1 {[%clk 0:02:08.7]} 10... Nxc6 {[%clk 0:02:01.9]} 11.
fxe4 {[%clk 0:01:44.6]} 11... e5 {[%clk 0:02:02]} 12. Nd5 {[%clk 0:01:37.1]}
12... Ra7 {[%clk 0:01:29.3]} 13. Be3 {[%clk 0:01:28.1]} 13... Rd7 {[%clk
0:01:21.6]} 14. Nf3 {[%clk 0:01:13.4]} 14... Nxe4 {[%clk 0:01:21.5]} 15. O-O
{[%clk 0:01:11.9]} 15... Bc5 {[%clk 0:01:16.8]} 16. Bxc5 {[%clk 0:00:59.8]}
16... Nxc5 {[%clk 0:01:17.7]} 17. Nb6 {[%clk 0:00:54.2]} 17... Rxd1 {[%clk
0:01:16.9]} 18. Rxd1 {[%clk 0:00:54.9]} 18... Nxb3 {[%clk 0:01:10.2]} 19. axb3
{[%clk 0:00:42.3]} 19... Bg4 {[%clk 0:01:00.4]} 20. Rd6 {[%clk 0:00:41]} 20...
Bxf3 {[%clk 0:01:00.5]} 21. gxf3 {[%clk 0:00:40.4]} 21... Nd4 {[%clk 0:01:01.4]}
22. Nd5 {[%clk 0:00:34.3]} 22... Nxf3+ {[%clk 0:00:51.9]} 23. Kf2 {[%clk
0:00:33.4]} 23... Nxh2 {[%clk 0:00:47.3]} 24. Rxa6 {[%clk 0:00:33]} 24... O-O
{[%clk 0:00:44.5]} 25. Ne3 {[%clk 0:00:23.3]} 25... h5 {[%clk 0:00:30.6]} 26.
Kg3 {[%clk 0:00:16.2]} 26... Ng4 {[%clk 0:00:30.9]} 27. Nf5 {[%clk 0:00:10.7]}
27... g6 {[%clk 0:00:29.5]} 28. Ne7+ {[%clk 0:00:10.3]} 28... Kg7 {[%clk
0:00:29.7]} 29. Rb6 {[%clk 0:00:10.8]} 29... f5 {[%clk 0:00:25.7]} 30. Nxg6
{[%clk 0:00:10.2]} 30... Rf6 {[%clk 0:00:22.7]} 31. Rxf6 {[%clk 0:00:06.6]}
31... Kxf6 {[%clk 0:00:23.6]} 32. Nh4 {[%clk 0:00:05.5]} 32... Ne3 {[%clk
0:00:20.3]} 0-1

[Event "*** Titled Tuesday Blitz"]
[Site "Chess.com"]
[Date "2020.12.29"]
[Round "8"]
[White "Dinamo81"]
[Black "Zhigalko_Sergei"]
[Result "0-1"]
[WhiteElo "2660"]
[BlackElo "2853"]
[TimeControl "180+1"]
[EndTime "11:27:46 PST"]
[Termination "Zhigalko_Sergei won on time"]

1. d4 {[%clk 0:03:00.9]} 1... Nf6 {[%clk 0:02:56.1]} 2. Bf4 {[%clk 0:02:59.8]}
2... e6 {[%clk 0:02:55.5]} 3. e3 {[%clk 0:02:59]} 3... b6 {[%clk 0:02:54.9]} 4.
Qf3 {[%clk 0:02:58.4]} 4... d5 {[%clk 0:02:52.6]} 5. Nc3 {[%clk 0:02:58.2]} 5...
Bb7 {[%clk 0:02:48.1]} 6. O-O-O {[%clk 0:02:56.1]} 6... a6 {[%clk 0:02:37.8]} 7.
g4 {[%clk 0:02:54.7]} 7... Bd6 {[%clk 0:02:16.9]} 8. Nge2 {[%clk 0:02:44.8]}
8... Qe7 {[%clk 0:02:05.2]} 9. g5 {[%clk 0:02:38.8]} 9... Nfd7 {[%clk
0:01:55.9]} 10. Qg3 {[%clk 0:02:17.1]} 10... Nc6 {[%clk 0:01:50.8]} 11. Bxd6
{[%clk 0:01:51.1]} 11... cxd6 {[%clk 0:01:45.7]} 12. Nf4 {[%clk 0:01:50.9]}
12... Na5 {[%clk 0:01:41]} 13. h4 {[%clk 0:01:41.1]} 13... O-O-O {[%clk
0:01:38.6]} 14. b3 {[%clk 0:00:59]} 14... Kb8 {[%clk 0:01:35.9]} 15. Kb2 {[%clk
0:00:58.7]} 15... Rc8 {[%clk 0:01:35.7]} 16. Bg2 {[%clk 0:00:49.9]} 16... Rc7
{[%clk 0:01:27.3]} 17. Rd2 {[%clk 0:00:46.1]} 17... Rhc8 {[%clk 0:01:25.9]} 18.
Nce2 {[%clk 0:00:46.2]} 18... b5 {[%clk 0:01:22.4]} 19. Nh5 {[%clk 0:00:45.6]}
19... g6 {[%clk 0:01:21.5]} 20. Nhf4 {[%clk 0:00:45.6]} 20... Nb6 {[%clk
0:01:21.7]} 21. Rhd1 {[%clk 0:00:39.3]} 21... Rc6 {[%clk 0:01:11.1]} 22. Nd3
{[%clk 0:00:37.5]} 22... R6c7 {[%clk 0:00:55.1]} 23. Nb4 {[%clk 0:00:37.4]}
23... Ka7 {[%clk 0:00:41.8]} 24. Nf4 {[%clk 0:00:34.6]} 24... Nac4+ {[%clk
0:00:39.9]} 25. bxc4 {[%clk 0:00:34.1]} 25... Nxc4+ {[%clk 0:00:40.8]} 26. Kc1
{[%clk 0:00:33.8]} 26... a5 {[%clk 0:00:41.7]} 27. Nbd3 {[%clk 0:00:33]} 27...
Ba6 {[%clk 0:00:32.8]} 28. Nb2 {[%clk 0:00:30.9]} 28... Na3 {[%clk 0:00:28]} 29.
c4 {[%clk 0:00:15.4]} 29... bxc4 {[%clk 0:00:17.3]} 30. Re2 {[%clk 0:00:11.3]}
30... c3 {[%clk 0:00:15.1]} 31. Nbd3 {[%clk 0:00:11.2]} 31... Rb8 {[%clk
0:00:15.7]} 0-1

[Event "*** Titled Tuesday Blitz"]
[Site "Chess.com"]
[Date "2020.12.29"]
[Round "8"]
[White "Son_of_Sultan"]
[Black "Witik"]
[Result "1-0"]
[WhiteElo "2572"]
[BlackElo "2714"]
[TimeControl "180+1"]
[EndTime "11:27:47 PST"]
[Termination "Son_of_Sultan won by resignation"]

1. Nf3 {[%clk 0:03:00.9]} 1... d5 {[%clk 0:02:59.6]} 2. g3 {[%clk 0:02:59.7]}
2... c6 {[%clk 0:02:59.6]} 3. Bg2 {[%clk 0:02:59.5]} 3... Bg4 {[%clk 0:03:00.2]}
4. O-O {[%clk 0:02:56]} 4... Nd7 {[%clk 0:03:00.2]} 5. d4 {[%clk 0:02:52.7]}
5... e6 {[%clk 0:02:58.7]} 6. c4 {[%clk 0:02:40]} 6... Ngf6 {[%clk 0:02:56.2]}
7. Nc3 {[%clk 0:02:31.4]} 7... Be7 {[%clk 0:02:55.7]} 8. h3 {[%clk 0:02:27.5]}
8... Bh5 {[%clk 0:02:55.4]} 9. cxd5 {[%clk 0:02:20.7]} 9... exd5 {[%clk
0:02:53.8]} 10. Ne5 {[%clk 0:02:06]} 10... O-O {[%clk 0:02:48]} 11. f4 {[%clk
0:02:04.9]} 11... c5 {[%clk 0:02:21.9]} 12. Be3 {[%clk 0:01:51.3]} 12... Nxe5
{[%clk 0:02:16.4]} 13. dxe5 {[%clk 0:01:47.1]} 13... d4 {[%clk 0:02:16.7]} 14.
exf6 {[%clk 0:01:40.2]} 14... Bxf6 {[%clk 0:02:16]} 15. g4 {[%clk 0:01:39]}
15... dxc3 {[%clk 0:01:44.5]} 16. bxc3 {[%clk 0:01:36.7]} 16... Qa5 {[%clk
0:01:25.2]} 17. Rc1 {[%clk 0:01:18.5]} 17... Rfe8 {[%clk 0:01:14]} 18. Bf2
{[%clk 0:01:04.7]} 18... Qxa2 {[%clk 0:01:11.7]} 19. Rc2 {[%clk 0:01:00.1]}
19... Qc4 {[%clk 0:01:02.5]} 20. gxh5 {[%clk 0:00:39.7]} 20... Qxf4 {[%clk
0:01:01.8]} 21. Bxc5 {[%clk 0:00:35.6]} 21... Qg5 {[%clk 0:01:01.9]} 22. Bd4
{[%clk 0:00:33.5]} 22... Bxd4+ {[%clk 0:00:56.7]} 23. cxd4 {[%clk 0:00:31.4]}
23... Qe3+ {[%clk 0:00:41.2]} 24. Kh1 {[%clk 0:00:30.4]} 24... Rad8 {[%clk
0:00:42.1]} 25. d5 {[%clk 0:00:29.6]} 25... Re7 {[%clk 0:00:24.1]} 26. Qd2
{[%clk 0:00:28.3]} 26... Qg3 {[%clk 0:00:21.3]} 27. Qf4 {[%clk 0:00:23.9]} 27...
Qb3 {[%clk 0:00:18]} 28. Rc7 {[%clk 0:00:21.3]} 28... Rxc7 {[%clk 0:00:16]} 29.
Qxc7 {[%clk 0:00:20.6]} 29... Rf8 {[%clk 0:00:16.9]} 30. d6 {[%clk 0:00:19.6]}
30... Qg3 {[%clk 0:00:12]} 31. Qe7 {[%clk 0:00:18.1]} 1-0